fUST/lending_fUST_20240509
["ID","MTS","AMOUNT","RATE_DAILY","PERIOD"]
[326702643,1715265048361,-186.12369325,0.00087945,120]
[326702644,1715265048370,-186.62,0.00087945,120]
[326702645,1715265048380,-184.10847356,0.00087945,120]
[326702646,1715265048392,-184.6,0.00087945,120]
[326702647,1715265048402,-175.656042,0.00088548,120]
[326702648,1715265048412,-1350.25217738,0.00089977,7]
[326702649,1715265048424,-500.0,0.00089985,2]
[326702650,1715265048433,-475.21318022,0.00089986,7]
[326702651,1715265048443,-2105.86951439,0.00089986,7]
[326702652,1715265048452,-836.51563144,0.00089986,7]
[326702653,1715265048461,-267.17005545,0.00089986,7]
[326702654,1715265048470,-196.57446273,0.00089986,120]
[326702655,1715265048479,-241.80176039,0.00089986,7]
[326702656,1715265048489,-154.78205877,0.00089987,7]
[326702657,1715265048498,-1037.69034226,0.00089987,120]
[326702658,1715265048507,-940.61834724,0.00089998,7]
[326702659,1715265048518,-155.49541582,0.00089998,120]
[326702660,1715265048528,-268.47629931,0.00089998,7]
[326702661,1715265048537,-155.60263205,0.00089998,7]
[326702662,1715265048546,-241.82135033,0.00089998,10]
[326702663,1715265048556,-155.50781506,0.00089998,7]
[326702664,1715265048565,-234.1541886,0.00089998,7]
[326702665,1715265048574,-157.02974696,0.00089998,7]
[326702666,1715265048583,-154.9591906,0.00089998,7]
[326702667,1715265048592,-154.87994054,0.00089998,7]
[326702668,1715265048602,-2395.74003987,0.00089998,7]
[326702669,1715265048611,-754.32029519,0.00089998,7]
[326702670,1715265048620,-293.90975456,0.00089998,7]
[326702671,1715265048629,-227.54927398,0.00089998,7]
[326702672,1715265048719,-586.64431672,0.00089998,7]
[326702673,1715265048729,-896.26549613,0.00089998,60]
[326702674,1715265048739,-180.31780966,0.00089998,7]
[326702675,1715265048748,-187.3264458,0.00089998,7]
[326702676,1715265048757,-155.05877696,0.00089998,7]
[326702677,1715265048766,-155.55190768,0.00089998,7]
[326702678,1715265048776,-160.38551829,0.00089998,7]
[326702679,1715265048785,-1694.695879,0.00089998,7]
[326702680,1715265048794,-272.75731384,0.00089998,7]
[326702681,1715265048804,-296.5852813,0.00089998,7]
[326702682,1715265048813,-1399.99750126,0.00089998,7]
[326702683,1715265048822,-155.47309219,0.00089998,7]
[326702684,1715265048832,-991.46263386,0.00089998,7]
[326702685,1715265048842,-274.44154292,0.00089998,7]
[326702686,1715265048851,-280.16232405,0.00089998,7]
[326702687,1715265048861,-200.35678971,0.00089998,7]
[326702688,1715265048870,-300.37709635,0.00089998,7]
[326702689,1715265048880,-165.79734582,0.00089998,7]
[326702690,1715265048891,-154.88904506,0.00089998,7]
[326702691,1715265048900,-259.25471415,0.00089998,7]
[326702692,1715265048910,-198.80362199,0.00089998,7]
[326702693,1715265048920,-167.60420816,0.00089998,7]
[326702694,1715265048930,-197.26867063,0.00089998,7]
[326702695,1715265048940,-155.14156002,0.00089998,7]
[326702696,1715265048949,-4836.70766331,0.00089998,7]
[326702697,1715265048959,-156.78690909,0.00089998,7]
[326702698,1715265048968,-154.9400109,0.00089998,7]
[326702699,1715265048978,-241.37203981,0.00089998,7]
[326702700,1715265048987,-1630.36744642,0.00089998,7]
[326702701,1715265048997,-186.84395512,0.00089998,7]
[326702702,1715265049006,-156.02837537,0.00089998,7]
[326702703,1715265049015,-164.65419489,0.00089998,7]
[326702704,1715265049026,-213.98739483,0.00089998,7]
[326702705,1715265049035,-2620.063236,0.00089998,120]
[326702706,1715265049044,-2620.063236,0.00089998,120]
[326702707,1715265049054,-160.878929,0.00089998,120]
[326702708,1715265049064,-160.878929,0.00089998,120]
[326702709,1715265049074,-151.0,0.00089998,120]
[326702710,1715265049083,-176.200493,0.00089998,120]
[326702711,1715265049092,-176.200493,0.00089998,120]
[326702712,1715265049102,-151.0,0.00089998,120]
[326702713,1715265049111,-151.0,0.00089998,120]
[326702714,1715265049120,-151.0,0.00089998,120]
[326702715,1715265049129,-1490.970447,0.00089998,120]
[326702716,1715265049142,-151.0,0.00089998,120]
[326702717,1715265049152,-1490.970447,0.00089998,120]
[326702718,1715265049161,-224.574585,0.00089998,120]
[326702719,1715265049171,-196.521399,0.00089998,120]
[326702720,1715265049180,-705.943443,0.00089998,120]
[326702721,1715265049189,-196.521399,0.00089998,120]
[326702722,1715265049199,-705.943443,0.00089998,120]
[326702723,1715265049208,-1361.595127,0.00089998,120]
[326702724,1715265049217,-151.0,0.00089998,120]
[326702725,1715265049227,-1361.595127,0.00089998,120]
[326702726,1715265049236,-450.114807,0.00089998,120]
[326702727,1715265049248,-450.114807,0.00089998,120]
[326702728,1715265049257,-151.0,0.00089998,120]
[326702729,1715265049267,-682.44341,0.00089998,120]
[326702730,1715265049277,-305.85022862,0.00089999,7]
[326702731,1715265049286,-10000.0,0.0009,120]
[326702732,1715265049295,-151.0,0.0009,120]
[326702733,1715265049304,-151.0,0.0009,120]
[326702734,1715265049313,-151.0,0.0009,120]
[326702735,1715265049323,-151.0,0.0009,120]
[326702736,1715265049333,-152.951108,0.0009,120]
[326702737,1715265049342,-1565.254589,0.0009,120]
[326702738,1715265049360,-1565.254589,0.0009,120]
[326702739,1715265049370,-151.0,0.0009,120]
[326702740,1715265049379,-682.44341,0.0009,120]
[326702741,1715265049393,-556.13,0.0009041,120]
[326702742,1715265049403,-556.13,0.0009315,120]
[326702743,1715265049413,-1000.0,0.00093797,120]
[326702744,1715265049424,-2620.063236,0.00093797,120]
[326702745,1715265049433,-2620.063236,0.00093797,120]
[326702746,1715265049444,-160.878929,0.00093797,120]
[326702747,1715265049454,-160.878929,0.00093797,120]
[326702748,1715265049464,-151.0,0.00093797,120]
[326702749,1715265049473,-1490.970447,0.00093797,120]
[326702750,1715265049483,-151.0,0.00093797,120]
[326702751,1715265049492,-1490.970447,0.00093797,120]
[326702752,1715265049502,-196.521399,0.00093797,120]
[326702753,1715265049512,-705.943443,0.00093797,120]
[326702754,1715265049521,-705.943443,0.00093797,120]
[326702755,1715265049531,-196.521399,0.00093797,120]
[326702756,1715265049540,-1361.595127,0.00093797,120]
[326702757,1715265049550,-1361.595127,0.00093797,120]
[326702758,1715265049559,-450.114807,0.00093797,120]
[326702759,1715265049568,-450.114807,0.00093797,120]
[326702760,1715265049577,-151.0,0.00093797,120]
[326702761,1715265049587,-500.0,0.00094519,2]
[326702762,1715265049596,-869.75,0.0009452,2]
[326702763,1715265049606,-300.0,0.0009452,7]
[326702764,1715265049616,-235.75336816,0.0009452,120]
[326702765,1715265049625,-500.0,0.0009452,120]
[326702766,1715265049635,-500.0,0.0009452,120]
[326702767,1715265049645,-546.87,0.0009452,120]
[326702768,1715265049653,-303.56386553,0.0009452,120]
[326702769,1715265049663,-316.81176955,0.0009452,120]
[326702770,1715265049672,-638.67,0.0009452,120]
[326702771,1715265049681,-215.58435734,0.0009452,120]
[326702772,1715265049690,-500.0,0.0009452,120]
[326702773,1715265049700,-536.54083908,0.0009452,120]
[326702774,1715265049709,-500.0,0.0009452,120]
[326702775,1715265049719,-500.0,0.0009452,120]
[326702776,1715265049728,-500.0,0.0009452,120]
[326702777,1715265049738,-500.0,0.0009452,120]
[326702778,1715265049748,-2526.05,0.0009452,120]
[326702779,1715265049757,-500.0,0.0009452,120]
[326702780,1715265049767,-500.0,0.0009452,120]
[326702781,1715265049776,-500.0,0.0009452,120]
[326702782,1715265049786,-500.0,0.0009452,21]
[326702783,1715265049795,-500.0,0.0009452,120]
[326702784,1715265049805,-500.0,0.0009452,120]
[326702785,1715265049814,-500.0,0.0009452,120]
[326702786,1715265049824,-500.0,0.0009452,120]
[326702787,1715265049833,-500.0,0.0009452,120]
[326702788,1715265049842,-1276.04,0.0009452,120]
[326702789,1715265049851,-151.0,0.0009452,120]
[326702790,1715265049861,-176.200493,0.0009452,120]
[326702791,1715265049871,-500.0,0.0009452,120]
[326702792,1715265049880,-176.200493,0.0009452,120]
[326702793,1715265049890,-500.0,0.0009452,120]
[326702794,1715265049900,-608.98,0.0009452,120]
[326702795,1715265049909,-500.0,0.0009452,120]
[326702796,1715265049918,-2591.65,0.0009452,120]
[326702797,1715265049927,-151.0,0.0009452,120]
[326702798,1715265049937,-187.909389,0.0009452,120]
[326702799,1715265049946,-500.0,0.0009452,120]
[326702800,1715265049955,-500.0,0.0009452,120]
[326702801,1715265049965,-500.0,0.0009452,120]
[326702802,1715265049974,-500.0,0.0009452,120]
[326702803,1715265049983,-176.243799,0.0009452,120]
[326702804,1715265049992,-682.44341,0.0009452,120]
[326702805,1715265050001,-556.13,0.0009589,120]
[326702806,1715265050010,-193.078763,0.00096621,120]
[326702807,1715265050019,-151.0,0.00097233,120]
[326702808,1715265050028,-556.13,0.0009863,120]
[326702809,1715265050038,-174.06892906,0.00098999,120]
[326702810,1715265050047,-240.64308688,0.00099071,2]
[326702811,1715265050056,-1049.59457327,0.00099998,14]
[326702812,1715265050065,-549.86052827,0.00099998,14]
[326702813,1715265050075,-151.0,0.00099998,120]
[326702814,1715265050084,-151.46529,0.00099998,120]
[326702815,1715265050093,-328.56557482,0.00099999,14]
[326702816,1715265050102,-151.430674,0.00099999,120]
[326702817,1715265050111,-176.200493,0.00099999,120]
[326702818,1715265050120,-176.200493,0.00099999,120]
[326702819,1715265050129,-151.0,0.00099999,120]
[326702820,1715265050139,-5000.0,0.001,50]
[326702821,1715265050149,-10000.0,0.001,120]
[326702822,1715265050158,-556.13,0.00101369,120]
[326702823,1715265050167,-556.13,0.00104109,120]
[326702824,1715265050176,-259.639414,0.00106713,120]
[326702825,1715265050185,-151.0,0.00106713,120]
[326702826,1715265050194,-151.0,0.00106713,120]
[326702827,1715265050203,-151.0,0.00106713,120]
[326702828,1715265050213,-151.0,0.00106713,120]
[326702829,1715265050222,-151.0,0.00106713,120]
[326702830,1715265050231,-151.0,0.00106713,120]
[326702831,1715265050241,-151.0,0.00106713,120]
[326702832,1715265050250,-1565.254589,0.00106713,120]
[326702833,1715265050259,-1565.254589,0.00106713,120]
[326702834,1715265050268,-2620.063236,0.00106713,120]
[326702835,1715265050277,-2620.063236,0.00106713,120]
[326702836,1715265050287,-160.878929,0.00106713,120]
[326702837,1715265050296,-160.878929,0.00106713,120]
[326702838,1715265050305,-151.0,0.00106713,120]
[326702839,1715265050314,-1490.970447,0.00106713,120]
[326702840,1715265050324,-151.0,0.00106713,120]
[326702841,1715265050333,-1490.970447,0.00106713,120]
[326702842,1715265050342,-196.521399,0.00106713,120]
[326702843,1715265050356,-705.943443,0.00106713,120]
[326702844,1715265050366,-196.521399,0.00106713,120]
[326702845,1715265050376,-705.943443,0.00106713,120]
[326702846,1715265050385,-1361.595127,0.00106713,120]
[326702847,1715265050397,-1361.595127,0.00106713,120]
[326702848,1715265050406,-450.114807,0.00106713,120]
[326702849,1715265050414,-450.114807,0.00106713,120]
[326702850,1715265050424,-151.0,0.00106713,120]
[326702851,1715265050433,-500.0,0.00106809,2]
[326702852,1715265050445,-9383.69161612,0.0010681,14]
[326702853,1715265050456,-151.0,0.0010681,120]
[326702854,1715265050465,-151.0,0.0010681,120]
[326702855,1715265050474,-151.0,0.0010681,3]
[326702856,1715265050483,-251.052623,0.0010681,120]
[326702857,1715265050493,-1716.906744,0.0010681,120]
[326702858,1715265050502,-251.052623,0.0010681,120]
[326702859,1715265050519,-1716.906744,0.0010681,120]
[326702860,1715265050531,-682.44341,0.0010681,120]
[326702861,1715265050541,-3090.44437915,0.00106812,30]
[326702862,1715265050551,-176.200493,0.00106812,120]
[326702863,1715265050560,-176.200493,0.00106812,120]
[326702864,1715265050570,-500.0,0.00106812,2]
[326702865,1715265050580,-210.759965,0.00106812,120]
[326702866,1715265050590,-190.45031559,0.00106833,14]
[326702867,1715265050600,-1135.06325195,0.00106836,14]
[326702868,1715265050609,-151.0,0.00106836,120]
[326702869,1715265050620,-151.0,0.00106836,120]
[326702870,1715265050630,-151.0,0.00106836,120]
[326702871,1715265050641,-151.0,0.00106836,120]
[326702872,1715265050650,-151.0,0.00106836,120]
[326702873,1715265050660,-151.777943,0.00106836,120]
[326702874,1715265050670,-151.0,0.00106836,120]
[326702875,1715265050679,-271.402536,0.00106836,120]
[326702876,1715265050688,-271.402536,0.00106836,120]
[326702877,1715265050698,-151.0,0.00106836,120]
[326702878,1715265050707,-151.0,0.00106836,120]
[326702879,1715265050716,-151.0,0.00106836,120]
[326702880,1715265050726,-151.0,0.00106836,120]
[326702881,1715265050735,-151.0,0.00106836,120]
[326702882,1715265050744,-151.0,0.00106836,120]
[326702883,1715265050753,-1565.254589,0.00106836,120]
[326702884,1715265050763,-1565.254589,0.00106836,120]
[326702885,1715265050773,-187.87636851,0.00106846,14]
[326702886,1715265050782,-245.66418244,0.00106847,14]
[326702887,1715265050792,-500.0,0.00106848,2]
[326702888,1715265050801,-869.75,0.00106849,2]
[326702889,1715265050811,-300.0,0.00106849,7]
[326702890,1715265050821,-500.0,0.00106849,120]
[326702891,1715265050830,-500.0,0.00106849,120]
[326702892,1715265050839,-546.87,0.00106849,120]
[326702893,1715265050848,-152.250838,0.00106849,120]
[326702894,1715265050970,-151.0,0.00106849,120]
[326702895,1715265050981,-638.67,0.00106849,120]
[326702896,1715265050992,-151.0,0.00106849,120]
[326702897,1715265051002,-151.0,0.00106849,120]
[326702898,1715265051011,-500.0,0.00106849,120]
[326702899,1715265051021,-151.0,0.00106849,3]
[326702900,1715265051030,-251.052623,0.00106849,120]
[326702901,1715265051040,-1716.906744,0.00106849,120]
[326702902,1715265051049,-251.052623,0.00106849,120]
[326702903,1715265051058,-1716.906744,0.00106849,120]
[326702904,1715265051068,-500.0,0.00106849,120]
[326702905,1715265051077,-151.0,0.00106849,120]
[326702906,1715265051086,-542.29685514,0.00106849,120]
[326702907,1715265051096,-556.13,0.00106849,120]
[326702908,1715265051105,-500.0,0.00106849,120]
[326702909,1715265051115,-500.0,0.00106849,120]
[326702910,1715265051124,-151.0,0.00106849,120]
[326702911,1715265051133,-154.122221,0.00106849,120]
[326702912,1715265051146,-2526.05,0.00106849,120]
[326702913,1715265051155,-151.0,0.00106849,120]
[326702914,1715265051164,-500.0,0.00106849,120]
[326702915,1715265051172,-500.0,0.00106849,120]
[326702916,1715265051181,-151.0,0.00106849,120]
[326702917,1715265051191,-1565.254589,0.00106849,120]
[326702918,1715265051200,-1565.254589,0.00106849,120]
[326702919,1715265051209,-500.0,0.00106849,120]
[326702920,1715265051218,-500.0,0.00106849,21]
[326702921,1715265051227,-359.00423711,0.00106849,120]
[326702923,1715265130865,-1532.07047485,0.00020912,2]
[326702924,1715265130914,-154.81419516,0.00020913,2]
[326702925,1715265130969,-22008.76423052,0.00020913,2]
[326702926,1715265140307,768.46,0.00021,2]
[326702927,1715265206577,484.01447361,0.00020913,2]
[326702928,1715265215386,18340.63685876,0.00020913,2]
[326702929,1715265221593,315.43093122,9.999e-05,2]
[326702930,1715265228670,615.88314847,0.00020913,2]
[326702931,1715265236630,316.40615319,0.00020913,2]
[326702932,1715265239471,236.17162982,9.999e-05,2]
[326702933,1715265239531,18340.63685876,0.00020913,2]
[326702934,1715265255280,331.52709144,0.00020913,2]
[326702935,1715265259528,9555.47180342,0.00020913,2]
[326702936,1715265268194,171.7902924,0.00020913,2]
[326702937,1715265275367,9555.47180342,0.00020913,2]
[326702938,1715265293532,9555.47180342,0.00020913,2]
[326702939,1715265300827,217.65675343,0.000266,120]
[326702940,1715265309383,9555.47180342,0.00020913,2]
[326702941,1715265327945,744.67639595,0.00020913,2]
[326702942,1715265333851,9555.47180342,0.00020913,2]
[326702943,1715265345997,881.8138353,0.00020913,2]
[326702944,1715265359988,158.768492,0.0001589,2]
[326702946,1715265390147,41680.0,0.00020913,2]
[326702950,1715265518142,26050.0,0.00020913,2]
[326702951,1715265524629,154.76784823,0.00020913,2]
[326702952,1715265547152,24812.98534146,0.00020913,2]
[326702956,1715265581934,166.77495429,0.00020913,2]
[326702959,1715265770071,5364.60572154,0.00020913,2]
[326702960,1715265775902,8690.0,0.0002,4]
[326702961,1715265808596,193.078763,0.0001589,2]
[326702962,1715265840973,770.40255084,0.0001,2]
[326702963,1715265854943,710.65201794,0.00020913,5]
[326702964,1715266024602,40944.35057858,0.00020913,2]
[326702967,1715266118328,292.10085152,0.00020913,2]
[326702968,1715266124355,293.59932405,0.00020913,2]
[326702969,1715266131642,3054.9715797,0.00020913,2]
[326702970,1715266133772,1881.78834853,0.00020913,2]
[326702971,1715266136781,15688.54119062,0.00020912,2]
[326702972,1715266140281,226.1371069,0.00020913,2]
[326702973,1715266140369,292.10006451,0.00020913,2]
[326702974,1715266142362,155.22463289,0.00020913,2]
[326702975,1715266143397,16046.37107718,0.00020913,2]
[326702976,1715266143714,940.61834724,0.00020913,2]
[326702977,1715266149764,502.56201972,0.00020913,2]
[326702978,1715266161623,904.39189989,9.999e-05,2]
[326702979,1715266165844,241.132844,0.00020913,2]
[326702980,1715266177672,769.33188265,0.00020913,2]
[326702981,1715266185133,2104.38388456,0.00020913,2]
[326702982,1715266188772,173.51987051,0.00020913,2]
[326702983,1715266198089,164.52126072,0.00020913,2]
[326702984,1715266199062,2114.05167411,0.00020913,2]
[326702985,1715266202544,194.45372354,0.00020913,2]
[326702986,1715266212261,41680.0,0.00020913,2]
[326703019,1715266234374,-189.30448835,0.00021544,2]
[326703020,1715266234385,-166.666666,0.00021644,2]
[326703021,1715266234395,-166.666666,0.00021644,2]
[326703022,1715266234405,-158.768492,0.00023459,2]
[326703024,1715266234414,-770.431643,0.0002528,2]
[326703025,1715266234424,-166.666666,0.00026986,2]
[326703027,1715266234433,-166.666666,0.00029993,2]
[326703029,1715266234443,-324.0,0.0003,30]
[326703031,1715266234455,-259.0,0.0003,2]
[326703033,1715266234465,-154.73694719,0.0003,4]
[326703034,1715266234476,-1683.5975985,0.00030473,2]
[326703035,1715266234485,-24900.0,0.00030775,2]
[326703036,1715266234495,-166.666666,0.00030811,2]
[326703037,1715266234509,-158.768492,0.00031027,2]
[326703038,1715266234519,-166.666666,0.00031629,2]
[326703039,1715266234529,-511.54151708,0.00032,4]
[326703040,1715266234539,-154.98450155,0.0003224,120]
[326703041,1715266234548,-166.666666,0.00032447,2]
[326703042,1715266234558,-259.0,0.00033,2]
[326703043,1715266234570,-166.666666,0.00033264,2]
[326703044,1715266234580,-466.94535979,0.00034,4]
[326703045,1715266234590,-166.666666,0.00034082,2]
[326703046,1715266234600,-154.7215013,0.00035,4]
[326703047,1715266234610,-322.07196136,0.00035,30]
[326703048,1715266234620,-156.17312734,0.00035,30]
[326703049,1715266234630,-259.0,0.00036,2]
[326703050,1715266234641,-1980.598515,0.00037,2]
[326703051,1715266234651,-770.431643,0.0003792,2]
[326703052,1715266234662,-158.768492,0.00038596,2]
[326703053,1715266234672,-50225.29827417,0.0004,2]
[326703054,1715266234682,-1000.0,0.0004,120]
[326703055,1715266234695,-521.83190116,0.0004,120]
[326703056,1715266234708,-500.0,0.0004,4]
[326703057,1715266234718,-153.0,0.00042823,2]
[326703058,1715266234728,-306.0,0.00042823,2]
[326703059,1715266234739,-153.0,0.00043661,2]
[326703060,1715266234748,-306.6297424,0.00043661,2]
[326703061,1715266234757,-153.0,0.00043661,2]
[326703062,1715266234770,-153.0,0.00043661,2]
[326703063,1715266234780,-153.0,0.00043661,2]
[326703064,1715266234789,-153.0,0.00043661,2]
[326703065,1715266234799,-154.5618725,0.00043661,2]
[326703066,1715266234809,-153.0,0.00043661,2]
[326703067,1715266234818,-154.4626503,0.00043661,2]
[326703068,1715266234828,-153.0,0.00043661,2]
[326703069,1715266234838,-153.0,0.00043661,2]
[326703070,1715266234848,-153.0,0.00043661,2]
[326703071,1715266234858,-153.0,0.00043661,2]
[326703072,1715266234868,-153.0,0.00043661,2]
[326703073,1715266234878,-153.0,0.00043661,2]
[326703074,1715266234889,-153.0,0.00043661,2]
[326703075,1715266234898,-153.0,0.00043661,2]
[326703076,1715266234908,-153.0,0.00043661,2]
[326703077,1715266234921,-153.0,0.00043661,2]
[326703078,1715266234931,-153.0,0.00043661,2]
[326703079,1715266234941,-153.0,0.00043661,2]
[326703080,1715266234951,-153.0,0.00043661,2]
[326703081,1715266234961,-153.0,0.00043661,2]
[326703082,1715266234970,-153.0,0.00043661,2]
[326703083,1715266234980,-153.0,0.00043661,2]
[326703084,1715266234991,-153.0,0.00043661,2]
[326703085,1715266235002,-153.0,0.00043661,2]
[326703086,1715266235012,-153.0,0.00043661,2]
[326703087,1715266235022,-153.0,0.00043661,2]
[326703088,1715266235032,-153.0,0.00043661,2]
[326703089,1715266235041,-151.0,0.00045,120]
[326703090,1715266235051,-158.768492,0.00046164,2]
[326703091,1715266235061,-151.0,0.00049068,120]
[326703092,1715266235072,-151.0,0.0005,120]
[326703093,1715266235081,-1000.0,0.0005,120]
[326703094,1715266235091,-151.0,0.00053151,120]
[326703095,1715266235101,-158.768492,0.00053733,2]
[326703096,1715266235111,-151.0,0.00057233,120]
[326703097,1715266235129,-1000.0,0.0006,120]
[326703098,1715266235143,-158.768492,0.00061301,2]
[326703099,1715266235153,-151.0,0.00061315,120]
[326703100,1715266235163,-151.0,0.00065397,120]
[326703101,1715266235174,-500.0,0.00068493,120]
[326703102,1715266235184,-158.768492,0.0006887,120]
[326703103,1715266235194,-151.0,0.00069479,120]
[326703104,1715266235204,-5000.0,0.0007,50]
[326703105,1715266235215,-1000.0,0.0007,120]
[326703106,1715266235226,-500.0,0.00071232,120]
[326703107,1715266235236,-151.0,0.00072356,120]
[326703108,1715266235246,-151.0,0.00073562,120]
[326703109,1715266235257,-500.0,0.00073972,120]
[326703110,1715266235267,-158.768492,0.00076438,120]
[326703111,1715266235277,-6097.39,0.00076702,3]
[326703112,1715266235287,-500.0,0.00076712,120]
[326703113,1715266235296,-494.0,0.00077152,120]
[326703114,1715266235306,-211.521,0.00077152,120]
[326703115,1715266235318,-151.0,0.00077644,120]
[326703116,1715266235327,-500.0,0.00079452,120]
[326703117,1715266235337,-7316.87,0.0007998,3]
[326703118,1715266235346,-8780.24,0.0007999,3]
[326703119,1715266235356,-5000.0,0.0008,50]
[326703120,1715266235366,-1000.0,0.0008,120]
[326703121,1715266235375,-197.30379845,0.00081626,2]
[326703122,1715266235388,-151.0,0.00081726,120]
[326703123,1715266235398,-20510.0927761,0.00081917,61]
[326703124,1715266235407,-500.0,0.00081917,2]
[326703125,1715266235417,-500.0,0.00081917,2]
[326703126,1715266235427,-500.0,0.00081917,2]
[326703127,1715266235436,-500.0,0.00081917,2]
[326703128,1715266235450,-500.0,0.00081917,2]
[326703129,1715266235461,-500.0,0.0008219,2]
[326703130,1715266235472,-619.2685263,0.0008219,120]
[326703131,1715266235483,-500.0,0.00082191,120]
[326703132,1715266235493,-500.0,0.00082191,120]
[326703133,1715266235506,-496.0,0.00082191,120]
[326703134,1715266235517,-500.0,0.00082191,120]
[326703135,1715266235527,-500.0,0.00082191,120]
[326703136,1715266235538,-504.55,0.00082191,120]
[326703137,1715266235547,-499.82630592,0.00082191,120]
[326703138,1715266235557,-558.83,0.00082191,120]
[326703139,1715266235567,-500.44360537,0.00082191,120]
[326703140,1715266235577,-500.0,0.00082191,120]
[326703141,1715266235589,-282.18706541,0.00082191,120]
[326703142,1715266235598,-365.49628073,0.00082191,120]
[326703143,1715266235608,-500.0,0.00082191,120]
[326703144,1715266235617,-500.0,0.00082191,120]
[326703145,1715266235626,-500.0,0.00082191,120]
[326703146,1715266235638,-2210.29,0.00082191,120]
[326703147,1715266235651,-500.0,0.00082191,120]
[326703148,1715266235662,-500.0,0.00082191,120]
[326703149,1715266235672,-512.08,0.00082191,120]
[326703150,1715266235682,-761.04,0.00082191,2]
[326703151,1715266235695,-500.0,0.00082191,120]
[326703152,1715266235705,-500.0,0.00082191,120]
[326703153,1715266235715,-500.0,0.00082191,120]
[326703154,1715266235724,-500.0,0.00082191,120]
[326703155,1715266235735,-1230.46,0.00082191,120]
[326703156,1715266235749,-500.0,0.00082191,120]
[326703157,1715266235758,-500.0,0.00082191,120]
[326703158,1715266235771,-500.0,0.00082191,120]
[326703159,1715266235781,-500.0,0.00082191,120]
[326703160,1715266235790,-2396.51,0.00082191,120]
[326703161,1715266235800,-503.03682668,0.00082191,120]
[326703162,1715266235810,-500.0,0.00082191,120]
[326703163,1715266235819,-500.0,0.00082191,120]
[326703164,1715266235829,-558.23,0.00082191,120]
[326703165,1715266235839,-500.0,0.00082191,120]
[326703166,1715266235852,-504.98738772,0.00082191,120]
[326703167,1715266235862,-514.65031328,0.00082191,120]
[326703168,1715266235960,-501.50519942,0.00082191,120]
[326703169,1715266235971,-500.0,0.00082191,120]
[326703170,1715266235981,-500.0,0.00082191,3]
[326703171,1715266235991,-500.0,0.00082191,120]
[326703172,1715266236001,-500.0,0.00082191,120]
[326703173,1715266236011,-500.0,0.00082191,120]
[326703174,1715266236020,-154.75239617,0.00082191,120]
[326703175,1715266236031,-500.0,0.00082191,120]
[326703176,1715266236040,-500.0,0.00082191,120]
[326703177,1715266236050,-500.0,0.00082191,120]
[326703178,1715266236060,-513.67346952,0.00082191,120]
[326703179,1715266236071,-505.97986332,0.00082191,120]
[326703180,1715266236081,-501.08460618,0.00082191,120]
[326703181,1715266236091,-502.85174228,0.00082191,120]
[326703182,1715266236101,-335.53706015,0.00082191,120]
[326703183,1715266236111,-500.0,0.00082191,120]
[326703184,1715266236126,-500.0,0.00082191,120]
[326703185,1715266236137,-500.0,0.00082191,120]
[326703186,1715266236146,-500.0,0.00082191,120]
[326703187,1715266236157,-500.0,0.00082191,120]
[326703188,1715266236166,-492.22129951,0.00082191,120]
[326703189,1715266236176,-500.0,0.00082191,7]
[326703190,1715266236188,-500.0,0.00082191,120]
[326703191,1715266236199,-396.82341215,0.00082191,120]